fUST/lending_fUST_20240814
["ID","MTS","AMOUNT","RATE_DAILY","PERIOD"]
[334799723,1723584639061,-500.0,0.00013698,2]
[334799724,1723584639071,-500.0,0.00013698,2]
[334799725,1723584639082,-500.0,0.00013698,2]
[334799726,1723584639093,-500.0,0.00013698,2]
[334799727,1723584639104,-500.0,0.00013698,2]
[334799728,1723584639113,-315.09384781,0.00013698,2]
[334799729,1723584639123,-500.0,0.00013698,2]
[334799730,1723584639132,-500.0,0.00013698,2]
[334799731,1723584639142,-500.0,0.00013698,2]
[334799732,1723584639152,-342.51819315,0.00013698,2]
[334799733,1723584639161,-500.0,0.00013698,2]
[334799734,1723584639170,-500.0,0.00013698,2]
[334799735,1723584639179,-500.0,0.00013698,2]
[334799736,1723584639190,-500.0,0.00013698,2]
[334799737,1723584639200,-500.0,0.00013698,2]
[334799738,1723584639211,-511.23209065,0.00013698,2]
[334799739,1723584639221,-500.0,0.00013698,2]
[334799740,1723584639230,-500.0,0.00013698,2]
[334799741,1723584639239,-500.0,0.00013698,2]
[334799742,1723584639249,-500.0,0.00013698,2]
[334799743,1723584639261,-500.0,0.00013698,2]
[334799744,1723584639272,-335.84463026,0.00013698,2]
[334799745,1723584639282,-500.0,0.00013698,2]
[334799746,1723584639293,-167.30614685,0.00013698,2]
[334799747,1723584639303,-500.0,0.00013698,2]
[334799748,1723584639313,-500.0,0.00013698,2]
[334799749,1723584639324,-515.01,0.00013698,2]
[334799750,1723584639335,-500.0,0.00013698,2]
[334799751,1723584639346,-500.0,0.00013698,2]
[334799752,1723584639356,-500.0,0.00013698,2]
[334799753,1723584639366,-499.15623592,0.00013698,2]
[334799754,1723584639379,-500.0,0.00013698,2]
[334799755,1723584639390,-505.29704672,0.00013698,2]
[334799756,1723584639401,-503.75870773,0.00013698,2]
[334799757,1723584639413,-500.0,0.00013698,2]
[334799758,1723584639424,-500.0,0.00013698,2]
[334799759,1723584639435,-515.35381011,0.00013698,2]
[334799760,1723584639447,-509.15636668,0.00013698,2]
[334799761,1723584639457,-505.25367923,0.00013698,2]
[334799762,1723584639467,-500.0,0.00013698,2]
[334799763,1723584639477,-500.0,0.00013698,2]
[334799764,1723584639487,-500.0,0.00013698,2]
[334799765,1723584639497,-500.0,0.00013698,2]
[334799766,1723584639507,-500.0,0.00013698,2]
[334799767,1723584639516,-500.0,0.00013698,2]
[334799768,1723584639527,-505.11462333,0.00013698,2]
[334799769,1723584639537,-500.0,0.00013698,2]
[334799770,1723584639550,-500.0,0.00013698,2]
[334799771,1723584639562,-500.0,0.00013698,2]
[334799772,1723584639579,-500.0,0.00013698,2]
[334799773,1723584639597,-503.64010005,0.00013698,2]
[334799774,1723584639618,-500.0,0.00013698,2]
[334799775,1723584639641,-500.0,0.00013698,2]
[334799776,1723584639661,-500.0,0.00013698,2]
[334799777,1723584639682,-500.0,0.00013698,2]
[334799778,1723584639703,-636.48,0.00013698,2]
[334799779,1723584639725,-500.0,0.00013698,2]
[334799780,1723584639736,-500.0,0.00013698,2]
[334799781,1723584639746,-500.0,0.00013698,2]
[334799782,1723584639756,-500.0,0.00013698,2]
[334799783,1723584639766,-432.16777112,0.00013698,2]
[334799784,1723584639775,-500.0,0.00013698,2]
[334799785,1723584639785,-503.14562305,0.00013698,2]
[334799786,1723584639794,-500.0,0.00013698,2]
[334799787,1723584639804,-500.0,0.00013698,2]
[334799788,1723584639814,-500.0,0.00013698,2]
[334799789,1723584639824,-502.81179889,0.00013698,2]
[334799790,1723584639834,-500.0,0.00013698,2]
[334799791,1723584639843,-500.0,0.00013698,2]
[334799792,1723584639852,-201.40103009,0.00013698,2]
[334799793,1723584639861,-355.22870848,0.00013698,2]
[334799794,1723584639872,-506.19776692,0.00013698,2]
[334799795,1723584639882,-500.0,0.00013698,2]
[334799796,1723584639893,-500.0,0.00013698,2]
[334799797,1723584639903,-509.49445872,0.00013698,2]
[334799798,1723584639915,-495.66488613,0.00013698,2]
[334799799,1723584639924,-500.0,0.00013698,2]
[334799800,1723584639934,-500.0,0.00013698,2]
[334799801,1723584639943,-503.98973753,0.00013698,2]
[334799802,1723584639954,-500.0,0.00013698,2]
[334799803,1723584639965,-494.33,0.00013698,2]
[334799804,1723584639975,-503.45749089,0.00013698,2]
[334799805,1723584639985,-500.0,0.00013698,2]
[334799806,1723584639995,-500.0,0.00013698,2]
[334799807,1723584640006,-500.0,0.00013698,2]
[334799808,1723584640016,-500.0,0.00013698,2]
[334799809,1723584640026,-506.00562016,0.00013698,2]
[334799810,1723584640037,-500.0,0.00013698,2]
[334799811,1723584640046,-500.0,0.00013698,2]
[334799812,1723584640057,-500.0,0.00013698,2]
[334799813,1723584640068,-500.0,0.00013698,2]
[334799814,1723584640078,-500.0,0.00013698,2]
[334799815,1723584640090,-500.0,0.00013698,2]
[334799816,1723584640100,-500.0,0.00013698,2]
[334799817,1723584640110,-500.0,0.00013698,2]
[334799818,1723584640120,-500.0,0.00013698,2]
[334799819,1723584640131,-505.25550787,0.00013698,2]
[334799820,1723584640141,-500.0,0.00013698,2]
[334799822,1723584640150,-500.0,0.00013698,2]
[334799824,1723584640159,-500.0,0.00013698,2]
[334799826,1723584640169,-500.0,0.00013698,2]
[334799828,1723584640178,-500.0,0.00013698,2]
[334799830,1723584640189,-500.0,0.00013698,2]
[334799832,1723584640199,-500.0,0.00013698,2]
[334799834,1723584640209,-500.0,0.00013698,2]
[334799836,1723584640219,-500.0,0.00013698,2]
[334799837,1723584640229,-500.0,0.00013698,2]
[334799838,1723584640238,-307.00971664,0.00013698,2]
[334799839,1723584640248,-501.7545629,0.00013698,2]
[334799840,1723584640257,-500.0,0.00013698,2]
[334799841,1723584640266,-500.0,0.00013698,2]
[334799842,1723584640276,-503.05407785,0.00013698,2]
[334799843,1723584640285,-500.0,0.00013698,2]
[334799844,1723584640295,-500.0,0.00013698,2]
[334799845,1723584640304,-500.0,0.00013698,2]
[334799846,1723584640313,-507.93,0.00013698,2]
[334799848,1723584640323,-500.0,0.00013698,2]
[334799849,1723584640332,-500.0,0.00013698,2]
[334799850,1723584640341,-500.0,0.00013698,2]
[334799851,1723584640351,-500.0,0.00013698,2]
[334799852,1723584640360,-500.0,0.00013698,2]
[334799853,1723584640369,-500.0,0.00013698,2]
[334799854,1723584640379,-500.0,0.00013698,2]
[334799856,1723584640389,-516.2,0.00013698,2]
[334799858,1723584640398,-500.0,0.00013698,2]
[334799860,1723584640407,-500.0,0.00013698,2]
[334799862,1723584640417,-500.0,0.00013698,2]
[334799863,1723584640427,-438.58578554,0.00013698,2]
[334799864,1723584640436,-500.0,0.00013698,2]
[334799865,1723584640446,-500.0,0.00013698,2]
[334799866,1723584640456,-431.81292941,0.00013698,2]
[334799867,1723584640466,-511.13313057,0.00013698,2]
[334799868,1723584640475,-340.34802559,0.00013698,2]
[334799869,1723584640485,-518.97,0.00013698,2]
[334799870,1723584640494,-500.0,0.00013698,2]
[334799871,1723584640503,-507.66033602,0.00013698,2]
[334799872,1723584640513,-500.0,0.00013698,2]
[334799873,1723584640522,-500.0,0.00013698,2]
[334799874,1723584640532,-500.0,0.00013698,2]
[334799875,1723584640541,-500.0,0.00013698,2]
[334799876,1723584640551,-500.0,0.00013698,2]
[334799877,1723584640561,-151.0,0.00013698,2]
[334799878,1723584640571,-500.0,0.00013698,2]
[334799879,1723584640580,-151.0,0.00013698,2]
[334799880,1723584640590,-505.43566481,0.00013698,2]
[334799881,1723584640600,-500.0,0.00013698,2]
[334799882,1723584640609,-500.0,0.00013698,2]
[334799883,1723584640620,-548.54323977,0.00013698,2]
[334799884,1723584640629,-532.04310518,0.00013698,2]
[334799885,1723584640640,-500.0,0.00013698,2]
[334799886,1723584640650,-586.61,0.00013698,2]
[334799887,1723584640660,-500.0,0.00013698,2]
[334799888,1723584640669,-386.50973709,0.00013698,2]
[334799889,1723584640679,-500.0,0.00013698,2]
[334799890,1723584640689,-205.72356645,0.00013698,2]
[334799891,1723584640699,-500.0,0.00013698,2]
[334799892,1723584640712,-500.0,0.00013698,2]
[334799893,1723584640722,-500.0,0.00013698,2]
[334799894,1723584640731,-219.68406848,0.00013698,2]
[334799895,1723584640741,-500.0,0.00013698,2]
[334799896,1723584640755,-500.0,0.00013698,2]
[334799897,1723584640764,-500.0,0.00013698,2]
[334799898,1723584640773,-151.0,0.00013698,2]
[334799899,1723584640784,-500.0,0.00013698,2]
[334799900,1723584640795,-500.0,0.00013698,2]
[334799901,1723584640804,-507.49885772,0.00013698,2]
[334799902,1723584640814,-163.849496,0.00013698,2]
[334799903,1723584640823,-163.849496,0.00013698,2]
[334799904,1723584640832,-500.0,0.00013698,2]
[334799905,1723584640842,-600.0,0.00013698,2]
[334799906,1723584640852,-503.22265799,0.00013698,2]
[334799907,1723584640862,-500.0,0.00013698,2]
[334799908,1723584640872,-500.0,0.00013698,2]
[334799909,1723584640881,-243.989904,0.00013698,2]
[334799910,1723584640891,-243.989904,0.00013698,2]
[334799911,1723584640900,-716.965682,0.00013698,2]
[334799912,1723584640909,-716.965682,0.00013698,2]
[334799913,1723584640919,-500.0,0.00013698,2]
[334799914,1723584640929,-151.0,0.00013698,2]
[334799915,1723584640938,-500.0,0.00013698,2]
[334799916,1723584640948,-500.0,0.00013698,2]
[334799917,1723584640958,-506.06967238,0.00013698,2]
[334799918,1723584640968,-500.0,0.00013698,2]
[334799919,1723584640978,-500.0,0.00013698,2]
[334799920,1723584640988,-500.0,0.00013698,2]
[334799921,1723584640998,-500.0,0.00013698,2]
[334799922,1723584641007,-500.0,0.00013698,2]
[334799923,1723584641019,-510.84567934,0.00013698,2]
[334799924,1723584641029,-500.0,0.00013698,2]
[334799925,1723584641039,-500.0,0.00013698,2]
[334799926,1723584641048,-500.0,0.00013698,2]
[334799927,1723584641058,-500.0,0.00013698,2]
[334799928,1723584641067,-560.96,0.00013698,2]
[334799929,1723584641077,-500.0,0.00013698,2]
[334799930,1723584641086,-500.0,0.00013698,2]
[334799931,1723584641096,-293.26465577,0.00013698,2]
[334799932,1723584641106,-335.63509456,0.00013698,2]
[334799933,1723584641115,-500.0,0.00013698,2]
[334799934,1723584641124,-500.0,0.00013698,2]
[334799935,1723584641134,-500.0,0.00013698,2]
[334799936,1723584641143,-151.0,0.00013698,2]
[334799937,1723584641152,-500.0,0.00013698,2]
[334799938,1723584641161,-151.0,0.00013698,2]
[334799939,1723584641171,-500.0,0.00013698,2]
[334799940,1723584641180,-567.7139551,0.00013698,2]
[334799941,1723584641190,-500.0,0.00013698,2]
[334799942,1723584641199,-500.0,0.00013698,2]
[334799943,1723584641209,-151.0,0.00013698,2]
[334799944,1723584641226,-151.0,0.00013698,2]
[334799945,1723584641236,-151.0,0.00013698,2]
[334799946,1723584641245,-500.0,0.00013698,2]
[334799947,1723584641254,-500.0,0.00013698,2]
[334799948,1723584641265,-500.0,0.00013698,2]
[334799949,1723584641276,-500.0,0.00013698,2]
[334799950,1723584641288,-500.0,0.00013698,2]
[334799951,1723584641299,-500.0,0.00013698,2]
[334799952,1723584641309,-500.0,0.00013698,2]
[334799953,1723584641321,-500.0,0.00013698,2]
[334799954,1723584641331,-507.01360164,0.00013698,2]
[334799955,1723584641340,-500.0,0.00013698,2]
[334799956,1723584641350,-500.0,0.00013698,2]
[334799957,1723584641359,-500.0,0.00013698,2]
[334799958,1723584641369,-500.0,0.00013698,2]
[334799959,1723584641378,-424.3057506,0.00013698,2]
[334799960,1723584641388,-500.0,0.00013698,2]
[334799961,1723584641397,-461.29126,0.00013698,2]
[334799962,1723584641407,-500.0,0.00013698,2]
[334799963,1723584641417,-500.0,0.00013698,2]
[334799964,1723584641427,-904.64,0.00013698,2]
[334799965,1723584641437,-500.0,0.00013698,2]
[334799966,1723584641446,-500.0,0.00013698,2]
[334799967,1723584641456,-500.0,0.00013698,2]
[334799968,1723584641466,-500.0,0.00013698,2]
[334799969,1723584641476,-500.0,0.00013698,2]
[334799970,1723584641485,-500.0,0.00013698,2]
[334799971,1723584641494,-500.0,0.00013698,2]
[334799972,1723584641504,-1224.85,0.00013698,2]
[334799973,1723584641513,-500.0,0.00013698,2]
[334799974,1723584641523,-539.01,0.00013698,2]
[334799975,1723584641533,-1324.87,0.00013698,2]
[334799976,1723584641542,-500.0,0.00013698,2]
[334799977,1723584641551,-500.0,0.00013698,2]
[334799978,1723584641561,-500.0,0.00013698,2]
[334799979,1723584641571,-500.0,0.00013698,2]
[334799980,1723584641580,-500.0,0.00013698,2]
[334799981,1723584641589,-500.0,0.00013698,2]
[334799982,1723584641599,-594.84,0.00013698,2]
[334799983,1723584641609,-500.0,0.00013698,2]
[334799984,1723584641619,-500.0,0.00013698,2]
[334799985,1723584641629,-1325.42,0.00013698,2]
[334799986,1723584641639,-500.0,0.00013698,2]
[334799987,1723584641649,-500.0,0.00013698,2]
[334799988,1723584641658,-500.0,0.00013698,2]
[334799989,1723584641668,-502.45261478,0.00013698,2]
[334799990,1723584641677,-500.0,0.00013698,2]
[334799991,1723584641687,-500.0,0.00013698,2]
[334799992,1723584641696,-500.0,0.00013698,2]
[334799993,1723584641706,-500.0,0.00013698,2]
[334799994,1723584641719,-500.0,0.00013698,2]
[334799995,1723584641852,-500.0,0.00013698,2]
[334799996,1723584641862,-500.0,0.00013698,2]
[334799997,1723584641871,-500.0,0.00013698,2]
[334799998,1723584641882,-500.0,0.00013698,2]
[334799999,1723584641891,-545.62,0.00013698,2]
[334800000,1723584641900,-500.0,0.00013698,2]
[334800001,1723584641910,-500.0,0.00013698,2]
[334800002,1723584641919,-500.0,0.00013698,2]
[334800003,1723584641928,-500.0,0.00013698,2]
[334800004,1723584641937,-500.0,0.00013698,2]
[334800005,1723584641947,-500.0,0.00013698,2]
[334800006,1723584641956,-500.0,0.00013698,2]
[334800007,1723584641967,-500.0,0.00013698,2]
[334800008,1723584641976,-500.0,0.00013698,2]
[334800009,1723584641985,-500.0,0.00013698,2]
[334800010,1723584641994,-742.0,0.00013698,2]
[334800011,1723584642005,-481.04539212,0.00013698,2]
[334800082,1723585832559,-300.0,9.799e-05,2]
[334800084,1723585832570,-300.0,9.998e-05,2]
[334800086,1723585832579,-251.90028407,9.999e-05,2]
[334800088,1723585832589,-250.11589222,9.999e-05,2]
[334800091,1723585832598,-534.52389159,9.999e-05,2]
[334800093,1723585832607,-857.0768813,9.999e-05,2]
[334800095,1723585832617,-601.50902274,9.999e-05,2]
[334800097,1723585832627,-212.58437332,9.999e-05,2]
[334800099,1723585832636,-494.6780177,9.999e-05,2]
[334800101,1723585832646,-300.0,0.00010998,2]
[334800103,1723585832657,-9154.1468737,0.00011518,2]
[334800105,1723585832667,-215.3663721,0.00011545,2]
[334800107,1723585832676,-176.178871,0.00011835,2]
[334800108,1723585832685,-176.178871,0.0001204,2]
[334800109,1723585832695,-176.178871,0.00012246,2]
[334800110,1723585832705,-176.178871,0.00012451,2]
[334800111,1723585832714,-500.0,0.00012986,2]
[334800112,1723585832724,-207.3387286,0.00013178,2]
[334800113,1723585832733,-294.7678211,0.00013288,2]
[334800114,1723585832743,-290.84316921,0.00013546,2]
[334800115,1723585832754,-618.39573923,0.00013548,2]
[334800116,1723585832763,-5323.40502986,0.00013596,2]
[334800117,1723585832772,-172.54829263,0.00013597,2]
[334800118,1723585832781,-207.3665351,0.000136,2]
[334800119,1723585832791,-207.3665351,0.000136,2]
[334800120,1723585832800,-414.6710039,0.000136,2]
[334800121,1723585832810,-28371.47385321,0.00013654,2]
[334800122,1723585832822,-2963.32263713,0.00013654,2]
[334800143,1723585838844,-273.37336231,9.9e-05,2]
[334800146,1723585838855,-51937.34919727,0.00013654,2]
[334800148,1723585838866,-58147.56594274,0.00013687,2]
[334800183,1723585842885,-216.20113732,0.00013589,2]
[334800186,1723585842897,-1247.93263543,0.00013597,2]
[334800187,1723585842908,-485.24043794,0.00013687,2]
[334800411,1723585846689,-216.2011373,0.0001366,2]
[334800412,1723585846702,-3897.41091872,0.00013687,2]
[334800539,1723587037879,-300.0,9.799e-05,2]
[334800540,1723587037889,-300.0,9.998e-05,2]
[334800542,1723587037899,-320.08358525,9.999e-05,2]
[334800543,1723587037909,-154.81863612,9.999e-05,2]
[334800544,1723587037920,-342.34390176,9.999e-05,2]
[334800545,1723587037930,-156.55416265,9.999e-05,2]
[334800546,1723587037940,-309.52024362,9.999e-05,2]
[334800547,1723587037950,-208.45077666,9.999e-05,2]
[334800549,1723587037960,-246.90024575,9.999e-05,2]
[334800550,1723587037970,-154.77557542,9.999e-05,2]
[334800552,1723587037983,-154.78325886,9.999e-05,2]
[334800553,1723587037993,-933.23052242,9.999e-05,2]
[334800555,1723587038007,-176.3835269,9.999e-05,2]
[334800556,1723587038017,-601.50902274,9.999e-05,2]
[334800558,1723587038027,-157.03315837,9.999e-05,2]
[334800559,1723587038036,-413.41235077,0.0001,2]
[334800560,1723587038046,-154.79102903,0.0001,2]
[334800561,1723587038055,-500.0,0.00012986,2]
[334800562,1723587038065,-4961.58776958,0.00013177,2]
[334800563,1723587038077,-361.81726028,0.00013177,2]
[334800564,1723587038086,-604.81,0.0001352,2]
[334800566,1723587038096,-183.77096673,0.00013589,2]
[334800568,1723587038104,-183.7709667,0.00013591,2]
[334800569,1723587038115,-183.7709667,0.00013594,2]
[334800570,1723587038124,-183.7709667,0.00013596,2]
[334800571,1723587038133,-1390.77262458,0.00013598,2]
[334800572,1723587038143,-183.7709667,0.00013598,2]
[334800573,1723587038154,-500.0,0.000136,2]
[334800574,1723587038164,-294.7678211,0.000136,2]
[334800575,1723587038174,-153.0,0.000136,2]
[334800576,1723587038185,-153.0,0.000136,2]
[334800577,1723587038194,-200.0,0.00013673,2]
[334800578,1723587038203,-200.0,0.00013673,2]
[334800579,1723587038213,-200.0,0.00013673,2]
[334800580,1723587038223,-200.0,0.00013673,2]
[334800581,1723587038235,-2111.27572321,0.00013687,2]
[334800582,1723587038245,-404.61321999,0.00013687,2]
[334800583,1723587038256,-3612.54647884,0.00013687,2]
[334800584,1723587038266,-858.99329514,0.00013687,2]
[334800585,1723587038277,-811.75389594,0.00013687,2]
[334800586,1723587038287,-1384.50193288,0.00013687,2]
[334800587,1723587038297,-1413.68526537,0.00013687,2]
[334800588,1723587038307,-5029.92097977,0.00013687,2]
[334800589,1723587038318,-3852.75061317,0.00013687,2]
[334800590,1723587038327,-8300.89257038,0.00013687,2]
[334800591,1723587038336,-1916.02568808,0.00013687,2]
[334800592,1723587038345,-218.37288986,0.00013687,2]
[334800593,1723587038354,-5307.96498776,0.00013688,2]
[334800594,1723587038364,-420846.1043381,0.00013688,2]
[334800649,1723587042839,-40866.2597369,0.00013688,2]
[334800651,1723587042850,-151.0,0.00013689,2]
[334800652,1723587042859,-166.160812,0.00013689,2]
[334800655,1723587042869,-208.629196,0.00013689,2]
[334800658,1723587042879,-208.629196,0.00013689,2]
[334800661,1723587042889,-150.01,0.00013697,2]
[334800664,1723587042899,-5988.76086081,0.00013697,2]
[334800667,1723587042908,-200.19988114,0.00013698,2]
[334800670,1723587042918,-328.42927456,0.00013698,2]
[334800671,1723587042927,-500.0,0.00013698,2]
[334800674,1723587042936,-500.0,0.00013698,2]
[334800677,1723587042946,-500.0,0.00013698,2]
[334800680,1723587042955,-500.0,0.00013698,2]
[334800683,1723587042965,-500.0,0.00013698,2]
[334800684,1723587042974,-500.0,0.00013698,2]
[334800686,1723587042984,-500.0,0.00013698,2]
[334800688,1723587042994,-500.0,0.00013698,2]
[334800691,1723587043004,-481.65584764,0.00013698,2]
[334800693,1723587043014,-500.0,0.00013698,2]
[334800695,1723587043023,-500.0,0.00013698,2]
[334800697,1723587043033,-250.0,0.00013698,2]
[334800699,1723587043042,-203.12621248,0.00013698,2]
[334800701,1723587043051,-151.0,0.00013698,2]
[334800703,1723587043060,-151.0,0.00013698,2]
[334800706,1723587043069,-151.0,0.00013698,2]
[334800708,1723587043080,-600.0,0.00013698,2]
[334800709,1723587043089,-500.0,0.00013698,2]
[334800710,1723587043099,-500.0,0.00013698,2]
[334800711,1723587043109,-500.0,0.00013698,2]
[334800712,1723587043119,-300.0,0.00013698,2]
[334800713,1723587043128,-587.56877707,0.00013698,2]
[334800714,1723587043138,-500.0,0.00013698,2]
[334800715,1723587043148,-500.0,0.00013698,2]
[334800716,1723587043157,-342.51819315,0.00013698,2]
[334800717,1723587043167,-208.629196,0.00013698,2]
[334800718,1723587043175,-208.629196,0.00013698,2]
[334800719,1723587043185,-208.629196,0.00013698,2]
[334800720,1723587043195,-208.629196,0.00013698,2]
[334800721,1723587043205,-500.0,0.00013698,2]
[334800722,1723587043215,-162.534581,0.00013698,2]
[334800723,1723587043225,-505.22362471,0.00013698,2]
[334800724,1723587043235,-151.0,0.00013698,2]
[334800725,1723587043245,-182.273201,0.00013698,2]
[334800726,1723587043254,-151.0,0.00013698,2]
[334800727,1723587043263,-182.273201,0.00013698,2]
[334800728,1723587043273,-182.273201,0.00013698,2]
[334800729,1723587043282,-182.273201,0.00013698,2]
[334800730,1723587043292,-151.0,0.00013698,2]
[334800731,1723587043301,-151.0,0.00013698,2]
[334800732,1723587043311,-216.444836,0.00013698,2]
[334800733,1723587043320,-216.444836,0.00013698,2]
[334800734,1723587043329,-216.444836,0.00013698,2]
[334800735,1723587043338,-216.444836,0.00013698,2]
[334800736,1723587043348,-326.2560808,0.00013698,2]
[334800737,1723587043357,-315.09384781,0.00013698,2]
[334800738,1723587043367,-500.0,0.00013698,2]
[334800739,1723587043377,-500.0,0.00013698,2]
[334800740,1723587043386,-151.0,0.00013698,2]
[334800741,1723587043396,-500.0,0.00013698,2]
[334800742,1723587043409,-151.0,0.00013698,2]
[334800743,1723587043420,-151.0,0.00013698,2]
[334800744,1723587043430,-500.0,0.00013698,2]
[334800745,1723587043440,-500.0,0.00013698,2]
[334800746,1723587043452,-335.84463026,0.00013698,2]
[334800747,1723587043461,-500.0,0.00013698,2]
[334800748,1723587043471,-505.25550787,0.00013698,2]
[334800749,1723587043483,-500.0,0.00013698,2]
[334800750,1723587043493,-500.0,0.00013698,2]
[334800751,1723587043503,-500.0,0.00013698,2]
[334800752,1723587043513,-151.0,0.00013698,2]
[334800753,1723587043522,-151.0,0.00013698,2]
[334800754,1723587043531,-151.0,0.00013698,2]
[334800755,1723587043544,-500.0,0.00013698,2]
[334800756,1723587043555,-151.0,0.00013698,2]
[334800757,1723587043568,-151.0,0.00013698,2]
[334800758,1723587043582,-151.0,0.00013698,2]
[334800759,1723587043595,-293.26465577,0.00013698,2]
[334800760,1723587043607,-500.0,0.00013698,2]
[334800761,1723587043618,-500.0,0.00013698,2]
[334800762,1723587043628,-500.0,0.00013698,2]
[334800763,1723587043639,-500.0,0.00013698,2]
[334800764,1723587043652,-500.0,0.00013698,2]
[334800765,1723587043667,-151.0,0.00013698,2]
[334800766,1723587043680,-151.0,0.00013698,2]
[334800767,1723587043692,-151.0,0.00013698,2]
[334800768,1723587043705,-185.628712,0.00013698,2]
[334800769,1723587043717,-500.0,0.00013698,2]
[334800770,1723587043729,-518.97,0.00013698,2]
[334800771,1723587043741,-500.0,0.00013698,2]
[334800772,1723587043753,-500.0,0.00013698,2]
[334800773,1723587043764,-500.0,0.00013698,2]
[334800774,1723587043777,-500.0,0.00013698,2]
[334800775,1723587043789,-505.43566481,0.00013698,2]
[334800776,1723587043801,-500.0,0.00013698,2]
[334800777,1723587043812,-500.0,0.00013698,2]
[334800778,1723587043823,-152.955709,0.00013698,2]
[334800779,1723587043834,-152.955709,0.00013698,2]
[334800780,1723587043846,-152.955709,0.00013698,2]
[334800781,1723587043859,-500.0,0.00013698,2]
[334800782,1723587043870,-152.955709,0.00013698,2]
[334800783,1723587043884,-152.955709,0.00013698,2]
[334800784,1723587043897,-152.955709,0.00013698,2]
[334800785,1723587043912,-151.0,0.00013698,2]
[334800786,1723587043923,-151.0,0.00013698,2]
[334800787,1723587043937,-151.0,0.00013698,2]
[334800788,1723587043949,-500.0,0.00013698,2]
[334800789,1723587043960,-500.0,0.00013698,2]
[334800790,1723587043971,-500.0,0.00013698,2]
[334800791,1723587043983,-219.68406848,0.00013698,2]
[334800792,1723587043995,-500.0,0.00013698,2]
[334800793,1723587044005,-500.0,0.00013698,2]
[334800794,1723587044018,-16.1869897,0.00013698,2]
[334800811,1723587047088,-200.0,0.00013673,2]
[334800812,1723587047100,-483.8130103,0.00013698,2]
[334800813,1723587047111,-151.0,0.00013698,2]
[334800814,1723587047122,-246.971675,0.00013698,2]
[334800815,1723587047133,-356.42393471,0.00013698,2]
[334800816,1723587047144,-500.0,0.00013698,2]
[334800817,1723587047155,-178.772163,0.00013698,2]
[334800818,1723587047166,-178.772163,0.00013698,2]
[334800819,1723587047177,-178.772163,0.00013698,2]
[334800820,1723587047187,-178.772163,0.00013698,2]
[334800821,1723587047198,-178.772163,0.00013698,2]
[334800822,1723587047208,-178.772163,0.00013698,2]
[334800823,1723587047219,-703.7,0.00013698,2]
[334800824,1723587047229,-565.29734231,0.00013698,2]
[334800825,1723587047241,-196.75710832,0.00013698,2]
[334800826,1723587047251,-500.0,0.00013698,2]
[334800827,1723587047262,-500.0,0.00013698,2]
[334800828,1723587047272,-503.75870773,0.00013698,2]
[334800829,1723587047284,-500.0,0.00013698,2]
[334800830,1723587047294,-500.0,0.00013698,2]
[334800831,1723587047305,-516.41732021,0.00013698,2]
[334800832,1723587047316,-500.0,0.00013698,2]
[334800833,1723587047327,-500.0,0.00013698,2]
[334800834,1723587047338,-500.0,0.00013698,2]
[334800835,1723587047349,-146.47792342,0.00013698,2]
[334800842,1723587770226,285.0,0.0002355,49]
[334800945,1723588238167,-932.76003752,9.999e-05,2]